[Event "Titled Tuesday Blitz September 27 Early 2022"]
[White "Vogel, Roven"]
[Black "Fernandez De La Vara, Arnaldo"]
[WhiteFideId "12908088"]
[BlackFideId "3518388"]
[WhiteElo "2501"]
[BlackElo "2387"]
[Result "1/2-1/2"]
[Round "03"]
[TimeControl "180+1"]
[Date "2022.09.27"]
[WhiteClock "0:00:06"]
[BlackClock "0:00:06"]

1. d4 {[%clk 0:03:00]}  c5 {[%clk 0:03:00]} 2. d5 {[%clk 0:03:00]}  Nf6 {[%clk 0:03:01]} 3. Nc3 {[%clk 0:02:58]}  d6 {[%clk 0:03:02]} 4. e4 {[%clk 0:02:58]}  a6 {[%clk 0:03:03]} 5. a4 {[%clk 0:02:58]}  g6 {[%clk 0:03:04]} 6. h3 {[%clk 0:02:57]}  Bg7 {[%clk 0:03:04]} 7. Nf3 {[%clk 0:02:57]}  O-O {[%clk 0:03:05]} 8. Bc4 {[%clk 0:02:55]}  Nbd7 {[%clk 0:03:05]} 9. O-O {[%clk 0:02:54]}  Ne8 {[%clk 0:03:06]} 10. Bf4 {[%clk 0:02:51]}  Nc7 {[%clk 0:03:06]} 11. Re1 {[%clk 0:02:49]}  Rb8 {[%clk 0:03:07]} 12. a5 {[%clk 0:02:38]}  b5 {[%clk 0:03:07]} 13. axb6 {[%clk 0:02:39]}  Rxb6 {[%clk 0:03:06]} 14. Na4 {[%clk 0:02:28]}  Rb4 {[%clk 0:02:42]} 15. Bf1 {[%clk 0:02:27]}  Nb6 {[%clk 0:02:31]} 16. c3 {[%clk 0:02:22]}  Rxa4 {[%clk 0:02:31]} 17. Rxa4 {[%clk 0:02:22]}  Nxa4 {[%clk 0:02:31]} 18. Qxa4 {[%clk 0:02:22]}  Bd7 {[%clk 0:02:17]} 19. Qa5 {[%clk 0:02:22]}  Qb8 {[%clk 0:02:12]} 20. Bc1 {[%clk 0:02:06]}  Qb7 {[%clk 0:02:03]} 21. Nd2 {[%clk 0:02:06]}  Rb8 {[%clk 0:02:00]} 22. Nc4 {[%clk 0:02:05]}  Bb5 {[%clk 0:02:00]} 23. Qa2 {[%clk 0:01:56]}  Bxc4 {[%clk 0:01:21]} 24. Bxc4 {[%clk 0:01:55]}  Qb6 {[%clk 0:00:59]} 25. Re2 {[%clk 0:01:54]}  a5 {[%clk 0:00:57]} 26. Bf4 {[%clk 0:01:52]}  Be5 {[%clk 0:00:49]} 27. Bg5 {[%clk 0:01:44]}  Bf6 {[%clk 0:00:48]} 28. Bf4 {[%clk 0:01:42]}  Be5 {[%clk 0:00:47]} 29. Bc1 {[%clk 0:01:42]}  Bf6 {[%clk 0:00:46]} 30. Qa4 {[%clk 0:01:42]}  Nb5 {[%clk 0:00:42]} 31. g3 {[%clk 0:01:32]}  h5 {[%clk 0:00:39]} 32. h4 {[%clk 0:01:32]}  Kg7 {[%clk 0:00:38]} 33. Kg2 {[%clk 0:01:32]}  Kh7 {[%clk 0:00:37]} 34. Bf4 {[%clk 0:01:18]}  Be5 {[%clk 0:00:35]} 35. Bg5 {[%clk 0:01:14]}  Bf6 {[%clk 0:00:36]} 36. Bc1 {[%clk 0:01:11]}  Kg7 {[%clk 0:00:35]} 37. Re1 {[%clk 0:01:11]}  Kh7 {[%clk 0:00:35]} 38. Bf4 {[%clk 0:01:09]}  Be5 {[%clk 0:00:35]} 39. Bg5 {[%clk 0:01:05]}  Bf6 {[%clk 0:00:35]} 40. Ra1 {[%clk 0:01:03]}  Nc7 {[%clk 0:00:25]} 41. Qxa5 {[%clk 0:00:57]}  Qb7 {[%clk 0:00:04]} 42. Qa7 {[%clk 0:00:46]}  Bxg5 {[%clk 0:00:04]} 43. hxg5 {[%clk 0:00:45]}  Kg7 {[%clk 0:00:04]} 44. Qxb7 {[%clk 0:00:39]}  Rxb7 {[%clk 0:00:05]} 45. Ra2 {[%clk 0:00:39]}  f6 {[%clk 0:00:06]} 46. f4 {[%clk 0:00:36]}  fxg5 {[%clk 0:00:06]} 47. fxg5 {[%clk 0:00:37]}  e5 {[%clk 0:00:06]} 48. b3 {[%clk 0:00:31]}  Kf7 {[%clk 0:00:06]} 49. Rb2 {[%clk 0:00:28]}  Ke7 {[%clk 0:00:07]} 50. b4 {[%clk 0:00:28]}  cxb4 {[%clk 0:00:06]} 51. cxb4 {[%clk 0:00:29]}  Nb5 {[%clk 0:00:06]} 52. Bxb5 {[%clk 0:00:28]}  Rxb5 {[%clk 0:00:07]} 53. Kf2 {[%clk 0:00:29]}  Kd7 {[%clk 0:00:07]} 54. Ke3 {[%clk 0:00:29]}  Rb8 {[%clk 0:00:07]} 55. Kd3 {[%clk 0:00:27]}  Rf8 {[%clk 0:00:07]} 56. Ke2 {[%clk 0:00:22]}  Rc8 {[%clk 0:00:05]} 57. b5 {[%clk 0:00:21]}  Rc3 {[%clk 0:00:06]} 58. b6 {[%clk 0:00:20]}  Kc8 {[%clk 0:00:06]} 59. b7+ {[%clk 0:00:20]}  Kb8 {[%clk 0:00:06]} 60. Rb6 {[%clk 0:00:21]}  Rxg3 {[%clk 0:00:06]} 61. Rxd6 {[%clk 0:00:21]}  Kxb7 {[%clk 0:00:05]} 62. Rxg6 {[%clk 0:00:21]}  h4 {[%clk 0:00:06]} 63. Kf2 {[%clk 0:00:19]}  Rg4 {[%clk 0:00:05]} 64. Kf3 {[%clk 0:00:20]}  Rg3+ {[%clk 0:00:06]} 65. Kf2 {[%clk 0:00:19]}  Rg4 {[%clk 0:00:06]} 66. Ke3 {[%clk 0:00:16]}  Rg3+ {[%clk 0:00:07]} 67. Ke2 {[%clk 0:00:17]}  Rg4 {[%clk 0:00:06]} 68. Kd3 {[%clk 0:00:17]}  Rg3+ {[%clk 0:00:05]} 69. Kc4 {[%clk 0:00:17]}  Rg4 {[%clk 0:00:05]} 70. Kc5 {[%clk 0:00:17]}  Rxe4 {[%clk 0:00:05]} 71. Rg7+ {[%clk 0:00:17]}  Kc8 {[%clk 0:00:05]} 72. Kd6 {[%clk 0:00:15]}  h3 {[%clk 0:00:02]} 73. Rh7 {[%clk 0:00:15]}  Rg4 {[%clk 0:00:02]} 74. Rxh3 {[%clk 0:00:15]}  Rxg5 {[%clk 0:00:03]} 75. Rh8+ {[%clk 0:00:14]}  Kb7 {[%clk 0:00:02]} 76. Re8 {[%clk 0:00:14]}  Rg6+ {[%clk 0:00:02]} 77. Re6 {[%clk 0:00:14]}  Rg5 {[%clk 0:00:01]} 78. Rxe5 {[%clk 0:00:14]}  Rg6+ {[%clk 0:00:02]} 79. Re6 {[%clk 0:00:13]}  Rg5 {[%clk 0:00:02]} 80. Re7+ {[%clk 0:00:10]}  Kc8 {[%clk 0:00:03]} 81. Re8+ {[%clk 0:00:10]}  Kb7 {[%clk 0:00:03]} 82. Rd8 {[%clk 0:00:11]}  Kb6 {[%clk 0:00:03]} 83. Rc8 {[%clk 0:00:10]}  Kb7 {[%clk 0:00:03]} 84. Rc3 {[%clk 0:00:09]}  Rg6+ {[%clk 0:00:03]} 85. Ke5 {[%clk 0:00:09]}  Rg5+ {[%clk 0:00:03]} 86. Ke6 {[%clk 0:00:08]}  Rg6+ {[%clk 0:00:04]} 87. Kf5 {[%clk 0:00:08]}  Rh6 {[%clk 0:00:05]} 88. Ke5 {[%clk 0:00:08]}  Rh5+ {[%clk 0:00:04]} 89. Ke6 {[%clk 0:00:08]}  Rh6+ {[%clk 0:00:05]} 90. Kf5 {[%clk 0:00:08]}  Rh5+ {[%clk 0:00:05]} 91. Ke4 {[%clk 0:00:08]}  Rh4+ {[%clk 0:00:06]} 92. Ke5 {[%clk 0:00:05]}  Rh5+ {[%clk 0:00:07]} 93. Kd6 {[%clk 0:00:05]}  Rh6+ {[%clk 0:00:06]} 94. Kc5 {[%clk 0:00:06]}  Kc7 {[%clk 0:00:06]} 95. Rg3 {[%clk 0:00:06]}  Kc8 {[%clk 0:00:03]} 96. Rg7 {[%clk 0:00:05]}  Rf6 {[%clk 0:00:03]} 97. Rg8+ {[%clk 0:00:05]}  Kc7 {[%clk 0:00:03]} 98. Rg7+ {[%clk 0:00:06]}  Kc8 {[%clk 0:00:04]} 99. Rg4 {[%clk 0:00:07]}  Rh6 {[%clk 0:00:04]} 100. Rb4 {[%clk 0:00:06]}  Rf6 {[%clk 0:00:04]} 101. Rb5 {[%clk 0:00:06]}  Rh6 {[%clk 0:00:04]} 102. Rb4 {[%clk 0:00:06]}  Rf6 {[%clk 0:00:04]} 103. Re4 {[%clk 0:00:07]}  Kc7 {[%clk 0:00:04]} 104. Re7+ {[%clk 0:00:06]}  Kd8 {[%clk 0:00:04]} 105. Re5 {[%clk 0:00:04]}  Rg6 {[%clk 0:00:05]} 106. Re6 {[%clk 0:00:03]}  Rxe6 {[%clk 0:00:04]} 107. dxe6 {[%clk 0:00:04]}  Ke7 {[%clk 0:00:05]} 108. Kd5 {[%clk 0:00:04]}  Ke8 {[%clk 0:00:05]} 109. Kd6 {[%clk 0:00:05]}  Kd8 {[%clk 0:00:06]} 110. e7+ {[%clk 0:00:05]}  Ke8 {[%clk 0:00:06]} 111. Ke6 {[%clk 0:00:06]} 1/2-1/2


[Site "https://www.chess.com"]

[Event "Titled Tuesday Blitz September 27 Early 2022"]
[White "Vokhidov, Shamsiddin"]
[Black "Goltsev, Dmitry"]
[WhiteFideId "14204223"]
[BlackFideId "24176710"]
[WhiteElo "2619"]
[BlackElo "2257"]
[Result "1-0"]
[Round "03"]
[TimeControl "180+1"]
[Date "2022.09.27"]
[WhiteClock "0:00:18"]
[BlackClock "0:00:12"]

1. e4 {[%clk 0:03:00]}  e6 {[%clk 0:02:54]} 2. d4 {[%clk 0:03:00]}  d5 {[%clk 0:02:55]} 3. e5 {[%clk 0:03:01]}  c5 {[%clk 0:02:56]} 4. c3 {[%clk 0:03:02]}  Nc6 {[%clk 0:02:56]} 5. Nf3 {[%clk 0:03:03]}  Nge7 {[%clk 0:02:57]} 6. Na3 {[%clk 0:03:01]}  cxd4 {[%clk 0:02:56]} 7. cxd4 {[%clk 0:03:02]}  Nf5 {[%clk 0:02:57]} 8. Nc2 {[%clk 0:03:03]}  h5 {[%clk 0:02:57]} 9. a3 {[%clk 0:02:56]}  Be7 {[%clk 0:02:57]} 10. b4 {[%clk 0:02:56]}  g5 {[%clk 0:02:57]} 11. h3 {[%clk 0:02:51]}  Rg8 {[%clk 0:02:55]} 12. g4 {[%clk 0:02:49]}  hxg4 {[%clk 0:02:56]} 13. hxg4 {[%clk 0:02:49]}  Nh4 {[%clk 0:02:56]} 14. Nxh4 {[%clk 0:02:42]}  gxh4 {[%clk 0:02:57]} 15. f4 {[%clk 0:02:38]}  Bd7 {[%clk 0:02:57]} 16. g5 {[%clk 0:02:36]}  Rh8 {[%clk 0:02:55]} 17. Qg4 {[%clk 0:02:32]}  Qb6 {[%clk 0:02:54]} 18. Be3 {[%clk 0:02:28]}  O-O-O {[%clk 0:02:47]} 19. Rxh4 {[%clk 0:02:26]}  Kb8 {[%clk 0:02:46]} 20. Bd3 {[%clk 0:02:23]}  a6 {[%clk 0:02:41]} 21. Ke2 {[%clk 0:02:22]}  Na7 {[%clk 0:02:41]} 22. a4 {[%clk 0:02:11]}  Bxb4 {[%clk 0:02:05]} 23. Rb1 {[%clk 0:01:39]}  a5 {[%clk 0:01:57]} 24. Bd2 {[%clk 0:01:34]}  Bxa4 {[%clk 0:01:34]} 25. Nxb4 {[%clk 0:01:29]}  axb4 {[%clk 0:01:31]} 26. Bxb4 {[%clk 0:01:29]}  Bb5 {[%clk 0:01:24]} 27. Ke3 {[%clk 0:01:03]}  Qa6 {[%clk 0:01:16]} 28. Bxb5 {[%clk 0:00:38]}  Nxb5 {[%clk 0:01:14]} 29. Rh6 {[%clk 0:00:36]}  Qa2 {[%clk 0:01:08]} 30. Qd1 {[%clk 0:00:36]}  Qg2 {[%clk 0:01:02]} 31. Qf1 {[%clk 0:00:25]}  Qe4+ {[%clk 0:00:57]} 32. Kd2 {[%clk 0:00:23]}  Qxd4+ {[%clk 0:00:56]} 33. Ke1 {[%clk 0:00:20]}  Qe3+ {[%clk 0:00:50]} 34. Qe2 {[%clk 0:00:19]}  Qg1+ {[%clk 0:00:20]} 35. Qf1 {[%clk 0:00:19]}  Qe3+ {[%clk 0:00:15]} 36. Qe2 {[%clk 0:00:20]}  Qxe2+ {[%clk 0:00:15]} 37. Kxe2 {[%clk 0:00:20]}  Nd4+ {[%clk 0:00:16]} 38. Kd3 {[%clk 0:00:20]}  Nf5 {[%clk 0:00:17]} 39. Rhh1 {[%clk 0:00:17]}  Rc8 {[%clk 0:00:12]} 40. Ba5 {[%clk 0:00:14]}  Rxh1 {[%clk 0:00:12]} 41. Rxh1 {[%clk 0:00:15]}  Ka7 {[%clk 0:00:12]} 42. Rh7 {[%clk 0:00:15]}  Rc4 {[%clk 0:00:10]} 43. Bd2 {[%clk 0:00:14]}  Rd4+ {[%clk 0:00:10]} 44. Kc2 {[%clk 0:00:14]}  Rc4+ {[%clk 0:00:10]} 45. Kd3 {[%clk 0:00:14]}  Rd4+ {[%clk 0:00:10]} 46. Ke2 {[%clk 0:00:15]}  Re4+ {[%clk 0:00:10]} 47. Kd1 {[%clk 0:00:15]}  d4 {[%clk 0:00:09]} 48. Rxf7 {[%clk 0:00:15]}  d3 {[%clk 0:00:10]} 49. Rd7 {[%clk 0:00:15]}  Rd4 {[%clk 0:00:10]} 50. Rxd4 {[%clk 0:00:14]}  Nxd4 {[%clk 0:00:11]} 51. Be3 {[%clk 0:00:15]}  b5 {[%clk 0:00:10]} 52. Bxd4+ {[%clk 0:00:15]}  Kb7 {[%clk 0:00:11]} 53. g6 {[%clk 0:00:16]}  b4 {[%clk 0:00:12]} 54. g7 {[%clk 0:00:17]}  b3 {[%clk 0:00:12]} 55. g8=Q {[%clk 0:00:18]} 1-0


[Site "https://www.chess.com"]

[Event "Titled Tuesday Blitz September 27 Early 2022"]
[White "Vovk, Orest"]
[Black "Dilanyan, Grigor"]
[WhiteFideId "14113490"]
[BlackFideId "13303570"]
[WhiteElo "2203"]
[BlackElo "2264"]
[Result "0-1"]
[Round "03"]
[TimeControl "180+1"]
[Date "2022.09.27"]
[WhiteClock "0:00:02"]
[BlackClock "0:00:06"]

1. h4 {[%clk 0:03:00]}  e5 {[%clk 0:02:58]} 2. h5 {[%clk 0:03:00]}  d5 {[%clk 0:02:59]} 3. h6 {[%clk 0:02:59]}  Nxh6 {[%clk 0:02:58]} 4. d4 {[%clk 0:02:59]}  e4 {[%clk 0:02:55]} 5. Bxh6 {[%clk 0:02:58]}  gxh6 {[%clk 0:02:55]} 6. e3 {[%clk 0:02:54]}  c5 {[%clk 0:02:54]} 7. Ne2 {[%clk 0:02:51]}  Nc6 {[%clk 0:02:53]} 8. Nbc3 {[%clk 0:02:49]}  c4 {[%clk 0:02:50]} 9. Nf4 {[%clk 0:02:47]}  Be6 {[%clk 0:02:48]} 10. Rh5 {[%clk 0:02:46]}  Bb4 {[%clk 0:02:33]} 11. Rxh6 {[%clk 0:02:38]}  Kd7 {[%clk 0:02:23]} 12. Bxc4 {[%clk 0:02:27]}  Qa5 {[%clk 0:02:07]} 13. Bb3 {[%clk 0:01:49]}  Rad8 {[%clk 0:01:48]} 14. Kf1 {[%clk 0:01:41]}  Kc8 {[%clk 0:01:30]} 15. Nce2 {[%clk 0:01:08]}  Bg4 {[%clk 0:01:19]} 16. c3 {[%clk 0:00:58]}  Be7 {[%clk 0:01:11]} 17. Qc2 {[%clk 0:00:52]}  Bg5 {[%clk 0:01:04]} 18. Rh1 {[%clk 0:00:48]}  h5 {[%clk 0:00:56]} 19. a3 {[%clk 0:00:45]}  Kb8 {[%clk 0:00:50]} 20. c4 {[%clk 0:00:44]}  dxc4 {[%clk 0:00:40]} 21. Bxc4 {[%clk 0:00:44]}  Qf5 {[%clk 0:00:31]} 22. Ng3 {[%clk 0:00:40]}  Nxd4 {[%clk 0:00:27]} 23. Qc3 {[%clk 0:00:26]}  Qc5 {[%clk 0:00:25]} 24. Nxe4 {[%clk 0:00:15]}  Qc6 {[%clk 0:00:20]} 25. Nxg5 {[%clk 0:00:12]}  Nf5 {[%clk 0:00:15]} 26. Nxf7 {[%clk 0:00:11]}  Rhf8 {[%clk 0:00:14]} 27. Nxd8 {[%clk 0:00:10]}  Rxd8 {[%clk 0:00:15]} 28. Be2 {[%clk 0:00:06]}  Qb6 {[%clk 0:00:09]} 29. Bxg4 {[%clk 0:00:05]}  hxg4 {[%clk 0:00:10]} 30. Rc1 {[%clk 0:00:04]}  a6 {[%clk 0:00:10]} 31. Rh7 {[%clk 0:00:04]}  Ka8 {[%clk 0:00:05]} 32. Kg1 {[%clk 0:00:04]}  g3 {[%clk 0:00:05]} 33. fxg3 {[%clk 0:00:04]}  Nxe3 {[%clk 0:00:05]} 34. Kh1 {[%clk 0:00:03]}  Ng4 {[%clk 0:00:05]} 35. Qc7 {[%clk 0:00:02]}  Nf2+ {[%clk 0:00:05]} 36. Kh2 {[%clk 0:00:03]}  Ng4+ {[%clk 0:00:05]} 37. Kh3 {[%clk 0:00:03]}  Nf2+ {[%clk 0:00:05]} 38. Kh4 {[%clk 0:00:01]}  Qf6+ {[%clk 0:00:05]} 39. Kh5 {[%clk 0:00:02]}  Qf5+ {[%clk 0:00:04]} 40. Kh6 {[%clk 0:00:02]}  Ng4+ {[%clk 0:00:05]} 41. Kg7 {[%clk 0:00:02]}  Qf6# {[%clk 0:00:06]} 0-1


[Site "https://www.chess.com"]

[Event "Titled Tuesday Blitz September 27 Early 2022"]
[White "White, John S."]
[Black "Fromm, Marius"]
[WhiteFideId "2502348"]
[BlackFideId "12993190"]
[WhiteElo "1904"]
[BlackElo "2312"]
[Result "0-1"]
[Round "03"]
[TimeControl "180+1"]
[Date "2022.09.27"]
[WhiteClock "0:00:42"]
[BlackClock "0:01:04"]

1. e4 {[%clk 0:02:58]}  c5 {[%clk 0:02:56]} 2. Nf3 {[%clk 0:02:57]}  d6 {[%clk 0:02:56]} 3. d4 {[%clk 0:02:56]}  cxd4 {[%clk 0:02:57]} 4. Nxd4 {[%clk 0:02:55]}  Nf6 {[%clk 0:02:58]} 5. Nc3 {[%clk 0:02:54]}  a6 {[%clk 0:02:58]} 6. Bg5 {[%clk 0:02:53]}  e6 {[%clk 0:02:58]} 7. f4 {[%clk 0:02:52]}  Be7 {[%clk 0:02:58]} 8. Qf3 {[%clk 0:02:51]}  Qc7 {[%clk 0:02:59]} 9. O-O-O {[%clk 0:02:49]}  Nbd7 {[%clk 0:03:00]} 10. Bd3 {[%clk 0:02:48]}  h6 {[%clk 0:02:59]} 11. Bxf6 {[%clk 0:02:47]}  Bxf6 {[%clk 0:02:58]} 12. Be2 {[%clk 0:02:35]}  O-O {[%clk 0:02:51]} 13. g4 {[%clk 0:02:31]}  b5 {[%clk 0:02:50]} 14. h4 {[%clk 0:02:15]}  b4 {[%clk 0:02:49]} 15. Nb1 {[%clk 0:02:08]}  Bb7 {[%clk 0:02:38]} 16. g5 {[%clk 0:02:02]}  Bxd4 {[%clk 0:02:32]} 17. Rxd4 {[%clk 0:02:01]}  h5 {[%clk 0:01:30]} 18. Qxh5 {[%clk 0:01:51]}  Rac8 {[%clk 0:01:15]} 19. Rc4 {[%clk 0:01:32]}  Qa5 {[%clk 0:01:15]} 20. a3 {[%clk 0:01:14]}  Rxc4 {[%clk 0:01:10]} 21. Bxc4 {[%clk 0:01:12]}  Rc8 {[%clk 0:01:10]} 22. Bb3 {[%clk 0:01:10]}  Rb8 {[%clk 0:01:10]} 23. g6 {[%clk 0:01:07]}  Qxh5 {[%clk 0:01:09]} 24. gxf7+ {[%clk 0:01:03]}  Qxf7 {[%clk 0:01:10]} 25. f5 {[%clk 0:01:02]}  Nc5 {[%clk 0:01:10]} 26. fxe6 {[%clk 0:01:00]}  Nxb3+ {[%clk 0:01:10]} 27. cxb3 {[%clk 0:00:58]}  Rc8+ {[%clk 0:01:09]} 28. Kd2 {[%clk 0:00:52]}  Qf2+ {[%clk 0:01:09]} 29. Kd3 {[%clk 0:00:50]}  a5 {[%clk 0:01:09]} 30. Nd2 {[%clk 0:00:47]}  bxa3 {[%clk 0:01:03]} 31. bxa3 {[%clk 0:00:46]}  Ba6+ {[%clk 0:01:03]} 32. Nc4 {[%clk 0:00:42]}  Bxc4+ {[%clk 0:01:04]} 33. bxc4 {[%clk 0:00:42]}  Qf3+ {[%clk 0:01:04]} 0-1


[Site "https://www.chess.com"]

[Event "Titled Tuesday Blitz September 27 Early 2022"]
[White "Wojtaszek, Radoslaw"]
[Black "Janaszak, Dawid"]
[WhiteFideId "1118358"]
[BlackFideId "1119206"]
[WhiteElo "2606"]
[BlackElo "2165"]
[Result "1-0"]
[Round "03"]
[TimeControl "180+1"]
[Date "2022.09.27"]
[WhiteClock "0:00:36"]
[BlackClock "0:00:16"]

1. Nf3 {[%clk 0:03:00]}  Nf6 {[%clk 0:02:59]} 2. g3 {[%clk 0:03:01]}  g6 {[%clk 0:02:58]} 3. b3 {[%clk 0:03:01]}  Bg7 {[%clk 0:02:58]} 4. Bb2 {[%clk 0:03:01]}  O-O {[%clk 0:02:58]} 5. c4 {[%clk 0:03:01]}  d6 {[%clk 0:02:55]} 6. d4 {[%clk 0:03:01]}  e5 {[%clk 0:02:51]} 7. dxe5 {[%clk 0:03:00]}  Ng4 {[%clk 0:02:52]} 8. Bg2 {[%clk 0:02:57]}  Nc6 {[%clk 0:02:52]} 9. O-O {[%clk 0:02:56]}  Ngxe5 {[%clk 0:02:45]} 10. Nxe5 {[%clk 0:02:56]}  Nxe5 {[%clk 0:02:46]} 11. Nc3 {[%clk 0:02:55]}  c6 {[%clk 0:02:25]} 12. Qd2 {[%clk 0:02:54]}  Be6 {[%clk 0:02:01]} 13. Rad1 {[%clk 0:02:51]}  Qa5 {[%clk 0:02:01]} 14. h3 {[%clk 0:02:29]}  Rad8 {[%clk 0:01:37]} 15. f4 {[%clk 0:02:28]}  Nd7 {[%clk 0:01:37]} 16. e4 {[%clk 0:02:28]}  Nb6 {[%clk 0:01:25]} 17. Ba1 {[%clk 0:02:01]}  f5 {[%clk 0:01:15]} 18. exf5 {[%clk 0:01:55]}  Bxf5 {[%clk 0:01:15]} 19. Kh2 {[%clk 0:01:48]}  h5 {[%clk 0:01:02]} 20. Rfe1 {[%clk 0:01:00]}  Rd7 {[%clk 0:00:39]} 21. Qc1 {[%clk 0:00:43]}  Qc5 {[%clk 0:00:34]} 22. Ne4 {[%clk 0:00:39]}  Bxe4 {[%clk 0:00:27]} 23. Rxe4 {[%clk 0:00:40]}  d5 {[%clk 0:00:21]} 24. Re6 {[%clk 0:00:38]}  Rf6 {[%clk 0:00:16]} 25. Bxf6 {[%clk 0:00:36]} 1-0


[Site "https://www.chess.com"]

[Event "Titled Tuesday Blitz September 27 Early 2022"]
[White "Zaichenko, Daria"]
[Black "Baches Garcia, Guillermo"]
[WhiteFideId "4197453"]
[BlackFideId "2209764"]
[WhiteElo "2039"]
[BlackElo "2423"]
[Result "0-1"]
[Round "03"]
[TimeControl "180+1"]
[Date "2022.09.27"]
[WhiteClock "0:01:29"]
[BlackClock "0:01:13"]

1. e4 {[%clk 0:02:57]}  c5 {[%clk 0:03:00]} 2. Nf3 {[%clk 0:02:57]}  d6 {[%clk 0:03:00]} 3. d4 {[%clk 0:02:58]}  cxd4 {[%clk 0:03:01]} 4. Nxd4 {[%clk 0:02:58]}  Nf6 {[%clk 0:03:02]} 5. Nc3 {[%clk 0:02:59]}  Nc6 {[%clk 0:03:02]} 6. Be2 {[%clk 0:02:57]}  e5 {[%clk 0:02:59]} 7. Nb3 {[%clk 0:02:55]}  Be7 {[%clk 0:02:59]} 8. Be3 {[%clk 0:02:55]}  Be6 {[%clk 0:02:57]} 9. O-O {[%clk 0:02:55]}  O-O {[%clk 0:02:57]} 10. a4 {[%clk 0:02:54]}  a5 {[%clk 0:02:56]} 11. Kh1 {[%clk 0:02:54]}  Nb4 {[%clk 0:02:56]} 12. f4 {[%clk 0:02:53]}  Qc7 {[%clk 0:02:49]} 13. Nd5 {[%clk 0:02:45]}  Bxd5 {[%clk 0:02:29]} 14. exd5 {[%clk 0:02:39]}  Nfxd5 {[%clk 0:02:24]} 15. Bd2 {[%clk 0:02:36]}  Nxf4 {[%clk 0:02:15]} 16. Bxf4 {[%clk 0:02:35]}  exf4 {[%clk 0:02:16]} 17. Rxf4 {[%clk 0:02:35]}  Qxc2 {[%clk 0:02:12]} 18. Qxc2 {[%clk 0:02:29]}  Nxc2 {[%clk 0:02:13]} 19. Bf3 {[%clk 0:02:27]}  Nxa1 {[%clk 0:02:09]} 20. Nxa1 {[%clk 0:02:25]}  Bf6 {[%clk 0:02:02]} 21. Nb3 {[%clk 0:02:21]}  Bxb2 {[%clk 0:01:57]} 22. Bxb7 {[%clk 0:02:21]}  Ra7 {[%clk 0:01:51]} 23. Bd5 {[%clk 0:02:19]}  Be5 {[%clk 0:01:50]} 24. Rc4 {[%clk 0:02:17]}  g6 {[%clk 0:01:45]} 25. g3 {[%clk 0:02:16]}  Rb8 {[%clk 0:01:43]} 26. Nd2 {[%clk 0:01:58]}  Kg7 {[%clk 0:01:42]} 27. Ne4 {[%clk 0:01:55]}  Rb4 {[%clk 0:01:38]} 28. Rxb4 {[%clk 0:01:42]}  axb4 {[%clk 0:01:39]} 29. Bb3 {[%clk 0:01:35]}  h6 {[%clk 0:01:30]} 30. Nd2 {[%clk 0:01:35]}  Kf6 {[%clk 0:01:19]} 31. Kg2 {[%clk 0:01:32]}  Bc3 {[%clk 0:01:16]} 32. Kf3 {[%clk 0:01:29]}  Bxd2 {[%clk 0:01:13]} 0-1


[Site "https://www.chess.com"]

[Event "Titled Tuesday Blitz September 27 Early 2022"]
[White "Zanette, Edgard Vinicius"]
[Black "Aakanksha Hagawane"]
[WhiteFideId "2109263"]
[BlackFideId "25014510"]
[WhiteElo "2182"]
[BlackElo "1971"]
[Result "1/2-1/2"]
[Round "03"]
[TimeControl "180+1"]
[Date "2022.09.27"]
[WhiteClock "0:00:09"]
[BlackClock "0:00:18"]

1. e4 {[%clk 0:03:00]}  c5 {[%clk 0:02:57]} 2. Nc3 {[%clk 0:02:58]}  d6 {[%clk 0:02:53]} 3. f4 {[%clk 0:02:56]}  Nc6 {[%clk 0:02:51]} 4. Bb5 {[%clk 0:02:54]}  Bd7 {[%clk 0:02:51]} 5. Nf3 {[%clk 0:02:51]}  a6 {[%clk 0:02:51]} 6. Bxc6 {[%clk 0:02:50]}  Bxc6 {[%clk 0:02:52]} 7. d3 {[%clk 0:02:47]}  g6 {[%clk 0:02:49]} 8. O-O {[%clk 0:02:43]}  Bg7 {[%clk 0:02:49]} 9. Qe1 {[%clk 0:02:43]}  Nf6 {[%clk 0:02:24]} 10. Kh1 {[%clk 0:02:37]}  O-O {[%clk 0:02:20]} 11. Qh4 {[%clk 0:02:33]}  h5 {[%clk 0:02:18]} 12. f5 {[%clk 0:02:31]}  e6 {[%clk 0:02:11]} 13. fxg6 {[%clk 0:02:10]}  fxg6 {[%clk 0:02:11]} 14. Qg5 {[%clk 0:02:06]}  Kh7 {[%clk 0:02:08]} 15. Nh4 {[%clk 0:02:04]}  Qe8 {[%clk 0:02:07]} 16. Qg3 {[%clk 0:01:59]}  Ng4 {[%clk 0:02:06]} 17. Bf4 {[%clk 0:01:45]}  e5 {[%clk 0:01:51]} 18. Bg5 {[%clk 0:01:42]}  Qe6 {[%clk 0:01:49]} 19. h3 {[%clk 0:01:39]}  Nh6 {[%clk 0:01:45]} 20. Nf3 {[%clk 0:01:31]}  Kh8 {[%clk 0:01:41]} 21. Be3 {[%clk 0:01:27]}  Rf6 {[%clk 0:01:34]} 22. Ng5 {[%clk 0:01:20]}  Qe7 {[%clk 0:01:34]} 23. Rxf6 {[%clk 0:01:18]}  Qxf6 {[%clk 0:01:32]} 24. Nd5 {[%clk 0:01:12]}  Bxd5 {[%clk 0:01:32]} 25. exd5 {[%clk 0:01:12]}  Rf8 {[%clk 0:01:32]} 26. Ne6 {[%clk 0:01:11]}  Nf5 {[%clk 0:01:28]} 27. Qg5 {[%clk 0:01:06]}  Nxe3 {[%clk 0:01:20]} 28. Qxe3 {[%clk 0:01:03]}  Qf2 {[%clk 0:01:15]} 29. Qg5 {[%clk 0:00:57]}  Rf6 {[%clk 0:01:15]} 30. Rc1 {[%clk 0:00:43]}  Kh7 {[%clk 0:01:14]} 31. Nxg7 {[%clk 0:00:42]}  Kxg7 {[%clk 0:01:14]} 32. a4 {[%clk 0:00:36]}  Qf4 {[%clk 0:01:07]} 33. Qxf4 {[%clk 0:00:36]}  Rxf4 {[%clk 0:01:08]} 34. Kg1 {[%clk 0:00:34]}  Rxa4 {[%clk 0:01:07]} 35. c4 {[%clk 0:00:33]}  Ra2 {[%clk 0:01:04]} 36. Rb1 {[%clk 0:00:32]}  a5 {[%clk 0:00:58]} 37. Kf2 {[%clk 0:00:32]}  Kf6 {[%clk 0:00:58]} 38. Ke3 {[%clk 0:00:32]}  a4 {[%clk 0:00:56]} 39. g3 {[%clk 0:00:31]}  Kg5 {[%clk 0:00:53]} 40. Kf3 {[%clk 0:00:31]}  h4 {[%clk 0:00:51]} 41. g4 {[%clk 0:00:29]}  a3 {[%clk 0:00:49]} 42. bxa3 {[%clk 0:00:29]}  Rxa3 {[%clk 0:00:49]} 43. Ke3 {[%clk 0:00:29]}  Ra2 {[%clk 0:00:46]} 44. Rxb7 {[%clk 0:00:23]}  Rh2 {[%clk 0:00:46]} 45. Rd7 {[%clk 0:00:24]}  Rxh3+ {[%clk 0:00:46]} 46. Ke2 {[%clk 0:00:24]}  Kxg4 {[%clk 0:00:44]} 47. Rxd6 {[%clk 0:00:24]}  g5 {[%clk 0:00:44]} 48. Rh6 {[%clk 0:00:24]}  Kf5 {[%clk 0:00:44]} 49. d6 {[%clk 0:00:24]}  Rh2+ {[%clk 0:00:43]} 50. Ke3 {[%clk 0:00:24]}  Ra2 {[%clk 0:00:43]} 51. d7 {[%clk 0:00:18]}  Ra8 {[%clk 0:00:43]} 52. Rc6 {[%clk 0:00:18]}  Rd8 {[%clk 0:00:42]} 53. Rxc5 {[%clk 0:00:16]}  Rxd7 {[%clk 0:00:42]} 54. Rc8 {[%clk 0:00:16]}  h3 {[%clk 0:00:41]} 55. Rh8 {[%clk 0:00:16]}  g4 {[%clk 0:00:41]} 56. Rh5+ {[%clk 0:00:15]}  Kg6 {[%clk 0:00:40]} 57. Rh4 {[%clk 0:00:13]}  Kg5 {[%clk 0:00:38]} 58. Rh8 {[%clk 0:00:12]}  Rd6 {[%clk 0:00:35]} 59. c5 {[%clk 0:00:12]}  Rc6 {[%clk 0:00:32]} 60. d4 {[%clk 0:00:12]}  exd4+ {[%clk 0:00:31]} 61. Kxd4 {[%clk 0:00:13]}  Kf4 {[%clk 0:00:31]} 62. Kd5 {[%clk 0:00:13]}  Rxc5+ {[%clk 0:00:18]} 63. Kxc5 {[%clk 0:00:12]}  Kg3 {[%clk 0:00:18]} 64. Kd4 {[%clk 0:00:12]}  Kh2 {[%clk 0:00:18]} 65. Ke3 {[%clk 0:00:12]}  g3 {[%clk 0:00:18]} 66. Rg8 {[%clk 0:00:09]}  Kg2 {[%clk 0:00:16]} 67. Kf4 {[%clk 0:00:09]}  h2 {[%clk 0:00:16]} 68. Rxg3+ {[%clk 0:00:09]}  Kf2 {[%clk 0:00:17]} 69. Rh3 {[%clk 0:00:09]}  Kg2 {[%clk 0:00:17]} 70. Rxh2+ {[%clk 0:00:09]}  Kxh2 {[%clk 0:00:18]} 1/2-1/2


[Site "https://www.chess.com"]